bitfinex-derivatives/quotes_SOLF0:USTF0_20260114
["timestamp","ask_amount","ask_price","bid_price","bid_amount"]
[1768355406498,9.77687717,145.33,145.25,6.1995]
[1768355407199,9.77687717,145.31,145.25,6.1995]
[1768355410200,9.77687717,145.31,145.23,8.32486641]
[1768355410901,9.77687717,145.31,145.24,6.2003]
[1768355411697,9.77687717,145.29,145.2,2.12456641]
[1768355412297,9.77687717,145.29,145.21,6.2015]
[1768355413202,9.77687717,145.29,145.22,6.2011]
[1768355415403,9.77687717,145.29,145.2,2.12456641]
[1768355416296,91.13687717,145.32,145.22,2.12456641]
[1768355416504,91.13687717,145.32,145.24,2.12456641]
[1768355417097,91.13687717,145.32,145.25,6.1998]
[1768355418202,10.48634228,145.31,145.25,6.1998]
[1768355419810,10.48634228,145.31,145.26,6.1994]
[1768355422816,10.48634228,145.31,145.24,6.2]
[1768355424115,10.48634228,145.31,145.25,6.1998]
[1768355442124,10.48634228,145.31,145.26,6.32862768]
[1768355449128,94.09978803,145.33,145.27,0.15693957]
[1768355449321,91.97522162,145.33,145.27,0.15693957]
[1768355450828,91.97522162,145.33,145.28,6.1984]
[1768355451324,91.97522162,145.33,145.29,6.198]
[1768355451628,81.36,145.33,145.29,6.198]
[1768355452124,80.013,145.33,145.29,6.198]
[1768355452524,10.61522162,145.35,145.29,6.198]
[1768355452719,12.73978803,145.39,145.29,0.17161365]
[1768355453927,10.61522162,145.39,145.33,6.1963]
[1768355457026,10.61522162,145.39,145.34,6.196]
[1768355458925,12.73978803,145.38,145.32,6.1966]
[1768355459128,12.73978803,145.38,145.3,0.19250869]
[1768355459520,12.73978803,145.38,145.31,6.1973]
[1768355460921,12.73978803,145.38,145.29,0.19579865]
[1768355461126,10.61522162,145.35,145.27,0.19928249]
[1768355461327,12.73978803,145.34,145.27,0.19928249]
[1768355462432,12.73978803,145.32,145.26,6.1991]
[1768355463937,10.61522162,145.36,145.27,0.20918455]
[1768355464937,10.61522162,145.36,145.3,6.1976]
[1768355465331,10.61522162,145.36,145.29,0.20150047]
[1768355466237,10.61522162,145.36,145.31,6.1972]
[1768355467535,10.61522162,145.36,145.29,6.39930047]
[1768355467941,10.61522162,145.36,145.29,0.20150047]
[1768355468635,10.10201918,145.42,145.34,0.21411804]
[1768355468841,10.10201918,145.42,145.32,0.21411804]
[1768355469239,13.41917022,145.42,145.32,0.21411804]
[1768355469538,10.10201918,145.41,145.32,0.21411804]
[1768355470943,10.10201918,145.41,145.33,0.22012479]
[1768355471631,3.31715104,145.44,145.33,0.22012479]
[1768355471632,10.10201918,145.44,145.36,0.22325917]
[1768355471837,3.31715104,145.48,145.36,0.22325917]
[1768355472238,3.31715104,145.46,145.36,0.22325917]
[1768355473641,3.31715104,145.46,145.38,6.1942]
[1768355473841,10.10201918,145.45,145.38,6.1942]
[1768355475745,10.10201918,145.49,145.41,10.1985441]
[1768355476335,10.10201918,145.49,145.41,16.3912441]
[1768355478350,10.10201918,145.49,145.39,6.1938]
[1768355478550,10.10201918,145.49,145.42,10.24765073]
[1768355479049,3.31715104,145.53,145.42,10.24765073]
[1768355479849,3.31715104,145.53,145.44,6.1917]
[1768355481054,10.30598909,145.52,145.44,6.1917]
[1768355482062,10.30598909,145.56,145.49,96.284]
[1768355482255,10.30598909,145.56,145.46,10.24765073]
[1768355484349,10.30598909,145.56,145.47,6.1904]
[1768355485357,10.30598909,145.56,145.52,6.1881]
[1768355485557,10.30598909,145.59,145.52,6.1881]
[1768355487552,10.30598909,145.59,145.53,6.1878]
[1768355487758,91.58598909,145.58,145.53,6.1878]
[1768355488460,10.30598909,145.63,145.56,6.1865]
[1768355491656,10.30598909,145.63,145.5,106.52195073]
[1768355491657,10.30598909,145.61,145.5,106.52195073]
[1768355492056,10.30598909,145.59,145.5,106.52195073]
[1768355492258,81.26,145.58,145.5,106.52195073]
[1768355492661,81.26,145.58,145.52,6.1882]
[1768355493567,91.56598909,145.58,145.5,16.43655073]
[1768355493868,10.30598909,145.56,145.47,10.24765073]
[1768355494268,10.30598909,145.56,145.47,16.43805073]
[1768355494968,13.62314013,145.55,145.47,16.43805073]
[1768355495168,11.32408321,145.52,145.45,6.1911]
[1768355495374,11.32408321,145.64,145.48,10.37168757]
[1768355495569,96.1821,145.65,145.48,10.37168757]
[1768355495570,11.32408321,145.59,145.48,10.37168757]
[1768355495767,11.32408321,145.59,145.5,10.37168757]
[1768355496067,81.24,145.58,145.5,10.37168757]
[1768355496268,81.24,145.58,145.52,6.1882]
[1768355496464,81.24,145.58,145.5,10.37168757]
[1768355497864,81.24,145.58,145.53,6.1879]
[1768355499660,11.32408321,145.62,145.54,10.37168757]
[1768355499869,81.24,145.61,145.54,10.37168757]
[1768355500768,81.24,145.61,145.55,6.1869]
[1768355502069,92.54408321,145.65,145.56,10.37168757]
[1768355503770,92.54408321,145.65,145.59,6.1853]
[1768355504172,11.32408321,145.65,145.58,10.37168757]
[1768355504368,81.22,145.64,145.6,6.1848]
[1768355505172,81.22,145.64,145.58,6.1856]
[1768355505374,81.22,145.64,145.58,10.37168757]
[1768355505975,81.22,145.64,145.58,16.55738757]
[1768355506175,92.54408321,145.64,145.58,6.1857]
[1768355506870,92.54408321,145.64,145.56,6.1865]
[1768355507071,11.32408321,145.63,145.55,10.37168757]
[1768355508775,11.32408321,145.63,145.56,6.1865]
[1768355510077,11.32408321,145.63,145.49,10.37168757]
[1768355510078,11.32408321,145.59,145.49,10.37168757]
[1768355510273,92.52408321,145.58,145.49,10.37168757]
[1768355510468,92.52408321,145.58,145.51,6.1885]
[1768355511672,11.32408321,145.57,145.49,16.56108757]
[1768355512073,11.32408321,145.63,145.52,10.37168757]
[1768355512280,14.64123425,145.61,145.52,10.37168757]
[1768355512770,81.2,145.6,145.52,10.37168757]
[1768355513770,81.2,145.6,145.55,6.1869]
[1768355515573,11.32408321,145.59,145.52,10.37168757]
[1768355516777,11.32408321,145.59,145.52,16.55998757]
[1768355517382,11.32408321,145.56,145.48,10.37168757]
[1768355517673,81.2,145.55,145.48,10.37168757]
[1768355517879,11.32408321,145.54,145.48,6.1898]
[1768355518776,11.32408321,145.54,145.46,6.1906]
[1768355519577,11.32408321,145.54,145.47,6.1904]
[1768355521878,11.32408321,145.54,145.45,16.56268757]
[1768355522080,11.32408321,145.52,145.45,6.191]
[1768355523182,11.32408321,145.52,145.43,6.192]
[1768355523385,11.32408321,145.51,145.42,10.37168757]
[1768355523576,81.22,145.5,145.42,10.37168757]
[1768355524785,81.22,145.5,145.44,6.1917]
[1768355525983,11.32408321,145.51,145.45,6.1913]
[1768355526394,3.31715104,145.58,145.47,11.44706077]
[1768355526692,92.01546999,145.58,145.49,11.44706077]
[1768355527380,92.01546999,145.58,145.52,6.1883]
[1768355527585,81.24,145.59,145.52,11.44706077]
[1768355527892,81.24,145.6,145.52,11.44706077]
[1768355528088,10.77546999,145.61,145.52,11.44706077]
[1768355528292,92.01546999,145.61,145.52,11.44706077]
[1768355528495,92.01546999,145.61,145.54,6.1874]
[1768355529296,81.24,145.61,145.55,17.63406077]
[1768355531690,10.77546999,145.64,145.56,6.1865]
[1768355531691,81.22,145.63,145.56,6.1865]
[1768355532394,81.22,145.63,145.57,6.1861]
[1768355532587,81.22,145.63,145.56,11.44706077]
[1768355533898,81.22,145.63,145.58,6.1856]
[1768355536500,81.22,145.64,145.58,6.1856]
[1768355536696,10.77546999,145.64,145.58,6.1856]
[1768355536998,10.77546999,145.63,145.5,16.84405196]
[1768355537198,10.77546999,145.63,145.52,11.44706077]
[1768355537497,10.77546999,145.63,145.55,6.1869]
[1768355537996,10.77546999,145.63,145.53,11.62539472]
[1768355538598,10.77546999,145.63,145.56,6.1866]
[1768355539101,81.2,145.62,145.54,107.87609472]
[1768355539300,81.2,145.62,145.57,6.1861]
[1768355540500,10.77546999,145.63,145.57,6.1861]
[1768355540702,91.97546999,145.63,145.58,6.1855]
[1768355541102,10.77546999,145.63,145.58,6.1855]
[1768355541301,91.97546999,145.63,145.58,6.1855]
[1768355541599,81.2,145.66,145.58,11.62539472]
[1768355542197,11.11386437,145.67,145.6,6.1849]
[1768355542400,81.2,145.66,145.6,6.1849]
[1768355542799,92.31386437,145.66,145.6,6.1849]
[1768355543197,11.11386437,145.65,145.58,6.1855]
[1768355543999,11.11386437,145.65,145.56,6.1864]
[1768355544395,81.2,145.64,145.59,6.1853]
[1768355544607,81.2,145.64,145.56,11.62539472]
[1768355545007,81.2,145.67,145.61,6.1843]
[1768355546406,92.31386437,145.67,145.59,11.62539472]
[1768355546801,11.11386437,145.66,145.6,6.1849]
[1768355547107,11.11386437,145.66,145.56,107.85989472]
[1768355548706,11.11386437,145.66,145.59,6.1853]
[1768355549102,11.11386437,145.66,145.56,11.62539472]
[1768355550108,11.11386437,145.66,145.58,6.1857]
[1768355551315,13.22900207,145.65,145.58,6.1857]
[1768355553711,13.22900207,145.65,145.59,6.1854]
[1768355554806,13.22900207,145.65,145.56,11.62539472]
[1768355555003,11.11386437,145.65,145.57,13.74053242]
[1768355555406,11.11386437,145.65,145.57,11.62539472]
[1768355556208,11.11386437,145.65,145.58,10.65213266]
[1768355557009,11.11386437,145.65,145.61,6.1845]
[1768355560815,11.11386437,145.65,145.59,6.185]
[1768355561021,13.22900207,145.65,145.59,6.185]
[1768355563921,11.11386437,145.65,145.59,6.185]
[1768355564115,11.11386437,145.65,145.54,177.4263]
[1768355564116,12.92626711,145.61,145.52,10.65213266]
[1768355564718,10.81112941,145.61,145.52,10.65213266]
[1768355564921,12.92626711,145.61,145.52,10.65213266]
[1768355565421,12.92626711,145.59,145.53,6.1876]
[1768355575637,10.81112941,145.59,145.53,6.1876]
[1768355575829,10.81112941,145.59,145.52,10.65213266]
[1768355576037,2.1151377,145.61,145.52,10.65213266]
[1768355576235,2.1151377,145.61,145.53,10.65213266]
[1768355576936,12.92626711,145.61,145.53,10.65213266]
[1768355577941,12.92626711,145.61,145.56,6.1866]
[1768355582242,12.92626711,145.61,145.57,6.1862]
[1768355582443,81.18,145.62,145.57,6.1862]
[1768355583245,81.18,145.62,145.58,6.1858]
[1768355583643,2.1151377,145.63,145.58,6.1858]
[1768355584847,12.92626711,145.63,145.56,10.65213266]
[1768355585741,12.92626711,145.63,145.57,6.1862]
[1768355586341,13.41836145,145.65,145.57,11.62522596]
[1768355587041,13.41836145,145.65,145.59,6.1854]
[1768355588448,11.30322375,145.65,145.59,6.1854]
[1768355590048,11.30322375,145.65,145.57,11.62522596]
[1768355590849,11.30322375,145.65,145.58,6.1858]
[1768355591546,11.30322375,145.65,145.59,6.1854]
[1768355593446,11.30322375,145.65,145.6,6.185]
[1768355596555,81.18,145.71,145.61,11.62522596]
[1768355597142,87.3603,145.71,145.63,6.1837]
[1768355597753,90.66480722,145.71,145.63,6.1837]
[1768355598451,11.63851852,145.7,145.63,6.1837]
[1768355599952,11.63851852,145.7,145.61,11.62522596]
[1768355600160,11.63851852,145.69,145.59,107.84251452]
[1768355600455,11.63851852,145.69,145.6,11.63091452]
[1768355601757,11.63851852,145.69,145.62,6.1841]
[1768355603354,11.63851852,145.69,145.62,17.81501452]
[1768355606862,11.63851852,145.69,145.58,11.63091452]
[1768355606863,11.63851852,145.68,145.58,11.63091452]
[1768355607460,81.18,145.71,145.58,11.63091452]
[1768355607461,11.63851852,145.66,145.58,11.63091452]
[1768355607664,11.63851852,145.64,145.56,11.63091452]
[1768355608560,11.63851852,145.64,145.58,6.1858]
[1768355609158,11.63851852,145.64,145.56,17.81731452]
[1768355612066,11.63851852,145.64,145.57,6.1862]
[1768355613056,11.63851852,145.64,145.58,6.1858]
[1768355614967,11.63851852,145.64,145.58,17.20996865]
[1768355617663,11.63851852,145.64,145.54,96.2505]
[1768355617664,11.54426109,145.67,145.61,17.20856865]
[1768355618467,11.54426109,145.66,145.58,11.02416865]
[1768355619868,11.54426109,145.66,145.58,17.20966865]
[1768355623770,11.54426109,145.66,145.59,6.1854]
[1768355627475,11.54426109,145.65,145.58,11.02416865]
[1768355627778,11.54426109,145.64,145.55,11.02416865]
[1768355628272,87.3638,145.63,145.56,6.1866]
[1768355628476,11.54426109,145.62,145.56,6.1866]
[1768355629078,11.54426109,145.62,145.55,11.02416865]
[1768355629875,11.54426109,145.62,145.55,17.21126865]
[1768355631981,11.54426109,145.62,145.56,11.02416865]
[1768355639489,11.54426109,145.62,145.55,6.1871]
[1768355642091,11.54426109,145.62,145.54,17.21166865]
[1768355643285,11.54426109,145.61,145.51,11.02416865]
[1768355644792,17.72906109,145.61,145.53,6.1879]
[1768355645091,12.43768586,145.6,145.53,6.1879]
[1768355645283,12.43768586,145.6,145.53,18.47425331]
[1768355645479,12.43768586,145.6,145.51,18.47475331]
[1768355645679,12.43768586,145.59,145.51,12.28635331]
[1768355646786,93.63768586,145.58,145.51,12.28635331]
[1768355647386,12.43768586,145.57,145.51,12.28635331]
[1768355647686,12.43768586,145.57,145.51,18.47495331]
[1768355648993,81.2,145.58,145.52,12.28635331]
[1768355649190,93.63768586,145.58,145.52,12.28635331]
[1768355652888,12.43768586,145.57,145.5,12.28635331]
[1768355653090,96.1962,145.63,145.46,96.2984]
[1768355653091,12.43768586,145.63,145.52,3.30450722]
[1768355653288,12.43768586,145.67,145.58,9.92927078]
[1768355653487,14.55273212,145.67,145.59,9.92927078]
[1768355653884,12.43768586,145.67,145.6,6.1847]
[1768355654088,12.43768586,145.67,145.6,16.1868933]
[1768355662304,81.2,145.68,145.6,10.0021933]
[1768355662504,83.31504626,145.68,145.6,10.0021933]
[1768355662906,2.11504626,145.68,145.6,10.0021933]
[1768355663700,12.14053453,145.69,145.6,10.0021933]
[1768355663897,12.14053453,145.69,145.62,6.184]
[1768355664106,14.25558079,145.69,145.62,6.184]
[1768355664299,12.14053453,145.69,145.62,6.184]
[1768355664498,14.25558079,145.69,145.62,6.184]
[1768355666304,14.25558079,145.69,145.6,10.0021933]
[1768355668001,14.25558079,145.67,145.61,11.00781669]
[1768355669608,14.25558079,145.67,145.6,6.1849]
[1768355671110,14.25558079,145.65,145.58,17.25351331]
[1768355678821,14.25558079,145.65,145.59,6.1854]
[1768355680122,14.25558079,145.65,145.59,17.90805212]
[1768355681023,12.14053453,145.65,145.59,17.90805212]
[1768355684727,12.14053453,145.65,145.6,6.185]
[1768355686031,12.14053453,145.65,145.61,6.1845]
[1768355686230,12.05609241,145.67,145.61,12.02630929]
[1768355687833,12.05609241,145.67,145.62,6.1841]
[1768355695046,12.05609241,145.67,145.61,6.1845]
[1768355696941,12.05609241,145.65,145.57,14.43517145]
[1768355697143,12.05609241,145.65,145.57,12.32012519]
[1768355697343,12.05609241,145.65,145.57,14.43517145]
[1768355698738,12.05609241,145.69,145.59,14.43517145]
[1768355698939,12.05609241,145.69,145.61,2.11504626]
[1768355699144,12.05609241,145.69,145.61,14.43517145]
[1768355699746,12.05609241,145.68,145.61,20.61967145]
[1768355700440,81.18,145.7,145.63,14.43517145]
[1768355701749,81.18,145.7,145.64,6.1833]
[1768355702051,93.23609241,145.7,145.64,6.1833]
[1768355703049,93.23609241,145.7,145.63,14.43517145]
[1768355703050,12.05609241,145.74,145.65,14.43517145]
[1768355703346,12.05609241,145.74,145.67,14.43517145]
[1768355704442,12.05609241,145.74,145.68,12.32012519]
[1768355704640,12.05609241,145.76,145.68,12.32012519]
[1768355705743,12.05609241,145.76,145.68,18.50162519]
[1768355709249,12.05609241,145.76,145.69,6.1811]
[1768355715748,12.05609241,145.76,145.68,12.32012519]
[1768355715954,12.05609241,145.76,145.7,6.1807]
[1768355718858,81.16,145.77,145.72,13.13322415]
[1768355719159,12.92475541,145.8,145.72,13.13322415]
[1768355720462,12.92475541,145.8,145.69,13.13322415]
[1768355720760,12.92475541,145.8,145.71,13.13322415]
[1768355721752,12.92475541,145.8,145.74,6.179]
[1768355721956,12.92475541,145.8,145.73,13.13322415]
[1768355723871,12.92475541,145.89,145.78,13.13322415]
[1768355724765,12.92475541,145.88,145.78,13.13322415]
[1768355724968,12.92475541,145.88,145.79,19.30992415]
[1768355726968,12.92475541,145.87,145.79,19.30992415]
[1768355728856,12.92475541,145.87,145.79,13.13322415]
[1768355729065,12.92475541,145.85,145.77,19.31082415]
[1768355729466,12.92475541,145.83,145.75,6.1785]
[1768355729664,12.92475541,145.81,145.73,13.13322415]
[1768355729865,12.92475541,145.8,145.73,13.13322415]
[1768355730868,12.92475541,145.8,145.73,19.31232415]
[1768355736667,99.23187985,145.83,145.75,20.1404526]
[1768355737271,13.18476471,145.82,145.75,20.1404526]
[1768355737775,4.94711514,145.91,145.82,14.11160536]
[1768355738874,4.94711514,145.91,145.82,20.28720536]
[1768355739066,4.94711514,145.91,145.82,14.11160536]
[1768355739670,13.18476471,145.9,145.82,14.11160536]
[1768355740173,102.12444893,145.95,145.82,14.11160536]
[1768355740174,95.945,146.01,145.88,14.11160536]
[1768355740368,4.94711514,145.97,145.88,14.11160536]
[1768355741869,4.94711514,145.97,145.89,6.1725]
[1768355742273,18.13187985,145.97,145.89,6.1725]
[1768355742573,18.13187985,145.97,145.89,20.28410536]
[1768355745575,13.18476471,145.96,145.85,14.11160536]
[1768355745972,19.35466471,145.96,145.87,14.11160536]
[1768355746476,13.18476471,145.95,145.87,14.11160536]
[1768355749281,13.18476471,145.94,145.87,14.11160536]
[1768355750282,13.18476471,146.01,145.93,14.11160536]
[1768355751281,18.13187985,146.0,145.93,14.11160536]
[1768355752283,18.13187985,146.0,145.91,6.1717]
[1768355752284,13.18476471,145.99,145.91,6.1717]
[1768355752784,13.18476471,145.99,145.91,20.28330536]
[1768355757095,18.13187985,145.98,145.91,20.28330536]
[1768355758295,13.18476471,145.98,145.91,20.28330536]
[1768355759492,13.18476471,145.96,145.89,14.11160536]
[1768355759897,18.13187985,145.95,145.87,6.1734]
[1768355760089,18.13187985,145.95,145.87,20.28500536]
[1768355760994,13.18476471,145.94,145.87,20.28500536]
[1768355764902,13.18476471,145.92,145.84,14.11160536]
[1768355765296,6.172,145.91,145.84,14.11160536]
[1768355766099,11.11851514,145.93,145.85,15.3851381]
[1768355766495,26.20326807,145.93,145.85,15.3851381]
[1768355771910,26.20326807,145.93,145.85,21.5594381]
[1768355772408,21.25615293,145.93,145.85,21.5594381]
[1768355775313,24.41693366,145.93,145.85,21.5594381]
[1768355775810,21.25615293,145.93,145.86,21.5590381]
[1768355780521,6.1714,145.92,145.86,21.5590381]
[1768355786724,21.24744425,145.92,145.86,15.3851381]
[1768355786923,21.24804425,145.91,145.86,15.3851381]
[1768355788733,6.172,145.91,145.86,15.3851381]
[1768355791932,6.1717,145.92,145.86,15.3851381]
[1768355792133,18.23682498,145.93,145.86,15.3851381]
[1768355794036,24.40782498,145.93,145.87,15.43234805]
[1768355796236,18.23682498,145.93,145.87,21.60574805]
[1768355796645,18.23682498,145.93,145.87,15.43234805]
[1768355797842,24.40782498,145.93,145.87,15.43234805]
[1768355799746,24.40782498,145.93,145.87,21.60584805]
[1768355800140,9.33178073,145.93,145.88,14.91136785]
[1768355802145,3.16078073,145.93,145.88,14.91136785]
[1768355805551,18.60349395,145.93,145.86,21.08526785]
[1768355806251,15.44271322,145.92,145.86,14.91136785]
[1768355807851,15.44271322,145.92,145.87,14.91136785]
[1768355808949,15.44271322,145.92,145.87,21.08476785]
[1768355809852,3.16078073,145.93,145.87,21.08476785]
[1768355815156,102.63331322,145.94,145.87,21.08476785]
[1768355815757,3.16078073,145.93,145.87,21.08476785]
[1768355816361,102.63331322,145.94,145.88,6.1731]
[1768355816559,3.16078073,145.93,145.88,6.1731]
[1768355819560,102.63331322,145.94,145.88,6.1731]
[1768355819760,3.16078073,145.93,145.88,6.1731]
[1768355819961,3.16078073,145.93,145.87,21.08486785]
[1768355820458,15.44271322,145.92,145.87,14.91136785]
[1768355820660,3.16078073,145.91,145.83,14.91136785]
[1768355821558,9.33258073,145.91,145.85,21.08576785]
[1768355822762,6.1718,145.91,145.85,21.08576785]
[1768355824367,9.33308073,145.9,145.85,14.91136785]
[1768355824758,24.77579395,145.9,145.85,14.91136785]
[1768355824957,18.60349395,145.9,145.85,14.91136785]
[1768355825362,18.60349395,145.9,145.83,6.175]
[1768355825363,18.60349395,145.9,145.83,16.07730957]
[1768355825567,18.89865116,145.88,145.81,22.25320957]
[1768355827676,96.77787043,145.92,145.83,16.07730957]
[1768355827868,3.16078073,145.9,145.83,16.07730957]
[1768355828883,3.16078073,145.9,145.84,22.25210957]
[1768355829068,3.16078073,145.9,145.85,16.07730957]
[1768355829270,84.20078073,145.92,145.86,16.07730957]
[1768355831373,84.20078073,145.92,145.86,22.25120957]
[1768355831775,81.04,145.92,145.86,22.25120957]
[1768355832270,84.20078073,145.92,145.86,22.25120957]
[1768355832470,99.93865116,145.92,145.86,22.25120957]
[1768355835276,96.77787043,145.92,145.86,22.25120957]
[1768355839683,96.77787043,145.92,145.86,16.07730957]
[1768355841283,81.04,145.92,145.88,15.85139835]
[1768355841484,81.04,145.94,145.88,15.85139835]
[1768355843985,97.14173443,145.94,145.88,15.85139835]
[1768355844383,16.10173443,145.93,145.87,6.1732]
[1768355846988,16.10173443,145.93,145.86,15.85139835]
[1768355849889,22.27283443,145.93,145.86,15.85139835]
[1768355850392,16.10173443,145.92,145.86,15.85139835]
[1768355858295,16.31444684,145.91,145.86,15.85139835]
[1768355858492,16.31444684,145.91,145.84,16.25535377]
[1768355858885,16.31444684,145.91,145.85,6.1744]
[1768355860296,16.31444684,145.9,145.82,16.25535377]
[1768355860692,97.35444684,145.89,145.82,16.25535377]
[1768355861089,97.35444684,145.89,145.82,22.43095377]
[1768355862490,16.31444684,145.88,145.81,6.1761]
[1768355862894,16.31444684,145.88,145.81,22.43145377]
[1768355863895,16.31444684,145.88,145.81,6.1761]
[1768355864495,22.48774684,145.88,145.8,22.43165377]
[1768355864891,16.31444684,145.87,145.8,22.43165377]
[1768355865093,16.31444684,145.87,145.81,22.43135377]
[1768355865297,97.35444684,145.89,145.82,16.25535377]
[1768355866103,16.31444684,145.88,145.82,16.25535377]
[1768355874915,16.31444684,145.88,145.82,22.43095377]
[1768355879614,16.31444684,145.88,145.82,16.25535377]
[1768355879814,21.25349646,145.88,145.82,16.25535377]
[1768355880015,16.31444684,145.87,145.8,22.43145377]
[1768355884321,16.31444684,145.86,145.8,16.25535377]
[1768355884525,16.31444684,145.86,145.78,22.43235377]
[1768355884720,16.31444684,145.85,145.78,22.43235377]
[1768355886433,22.48884684,145.85,145.78,22.43235377]
[1768355887621,16.31444684,145.85,145.79,21.94863933]
[1768355888829,16.31444684,145.85,145.8,15.77173933]
[1768355889022,15.95677714,145.87,145.81,15.77173933]
[1768355892420,22.13037714,145.87,145.81,15.77173933]
[1768355897433,25.2937041,145.87,145.81,15.77173933]
[1768355900939,16.5680086,145.86,145.81,15.77173933]
[1768355901138,22.7420086,145.86,145.81,15.77173933]
[1768355901434,22.7420086,145.86,145.8,22.33071509]
[1768355902436,22.7420086,145.86,145.8,16.15451509]
[1768355904731,25.90573556,145.85,145.78,16.15451509]
[1768355905828,25.90573556,145.85,145.79,16.15451509]
[1768355906935,19.73133556,145.85,145.79,16.15451509]
[1768355910840,19.73133556,145.85,145.79,22.33131509]
[1768355911335,16.5680086,145.85,145.79,22.33131509]
[1768355918142,16.5680086,145.85,145.8,16.6308024]
[1768355918346,16.5680086,145.85,145.8,22.8069024]
[1768355918745,16.20433275,145.87,145.81,16.6308024]
[1768355920247,16.20433275,145.87,145.81,22.8068024]
[1768355924248,22.37783275,145.87,145.81,22.8068024]
[1768355924547,19.36765971,145.86,145.79,22.8074024]
[1768355925851,25.54165971,145.86,145.79,22.8074024]
[1768355928544,25.54165971,145.86,145.79,16.6308024]
[1768355934766,22.37833275,145.86,145.79,16.6308024]
[1768355935454,16.20433275,145.84,145.77,16.6308024]
[1768355936057,16.20433275,145.84,145.77,22.8085024]
[1768355936964,16.20433275,145.86,145.79,16.6308024]
[1768355938755,16.20433275,145.86,145.79,6.1769]
[1768355939059,16.20433275,145.86,145.8,16.6308024]
[1768355939760,16.20433275,145.86,145.8,22.8073024]
[1768355940860,16.20433275,145.88,145.81,16.6308024]
[1768355941658,16.20433275,145.88,145.79,3.16332696]
[1768355941659,16.20433275,145.88,145.83,6.1751]
[1768355942568,19.36765971,145.88,145.82,16.6308024]
[1768355943067,25.54085971,145.88,145.82,16.6308024]
[1768355945364,22.37753275,145.88,145.82,16.6308024]
[1768355947570,16.84763129,145.87,145.82,16.6308024]
[1768355948566,6.866,145.95,145.86,96.0398]
[1768355948865,16.84763129,145.96,145.86,81.06]
[1768355949063,16.84763129,145.96,145.85,3.16332696]
[1768355949265,16.84763129,145.94,145.85,84.22332696]
[1768355949467,16.84763129,145.94,145.85,3.16332696]
[1768355949763,16.84763129,145.94,145.83,3.16332696]
[1768355949970,16.84763129,145.92,145.84,81.06]
[1768355951165,16.84763129,145.92,145.83,3.16332696]
[1768355952473,16.84763129,145.92,145.81,90.37922696]
[1768355953867,16.84763129,145.92,145.81,84.20332696]
[1768355954074,16.84763129,145.92,145.82,6.1754]
[1768355954075,20.01095825,145.92,145.82,6.1754]
[1768355954466,16.84763129,145.92,145.82,6.1754]
[1768355954668,20.01095825,145.92,145.82,6.1754]
[1768355955173,16.84763129,145.92,145.82,6.1754]
[1768355955374,20.01095825,145.92,145.82,6.1754]
[1768355956778,16.84763129,145.89,145.8,87.2162]
[1768355957186,20.01095825,145.89,145.81,6.1759]
[1768355957478,16.84763129,145.89,145.8,81.04]
[1768355958884,16.84763129,145.89,145.82,6.1754]
[1768355959183,16.84763129,145.89,145.8,177.1151]
[1768355959783,16.84763129,145.89,145.83,6.175]
[1768355963080,16.84763129,145.89,145.82,6.1755]
[1768355963970,16.84763129,145.89,145.8,81.04]
[1768355963971,16.84763129,145.89,145.8,177.1159]
[1768355965782,16.84763129,145.89,145.84,6.1747]
[1768355976890,16.84763129,145.89,145.82,6.1752]
[1768355977098,16.84763129,145.89,145.82,87.2152]
[1768355977399,16.84763129,145.89,145.82,81.04]
[1768355978998,16.84763129,145.89,145.83,6.1752]
[1768355983504,6.174,145.86,145.76,20.6]
[1768355983704,4.67551964,145.85,145.72,4.94104368]
[1768355984004,4.67551964,145.85,145.76,6.1779]
[1768355985404,4.67551964,145.85,145.72,177.1684]
[1768355985405,9.61656332,145.81,145.69,96.1482]
[1768355985597,4.67551964,145.8,145.68,96.1585]
[1768355985800,4.67551964,145.8,145.69,4.94104368]
[1768355986708,4.67551964,145.8,145.67,182.14214368]
[1768355987304,4.67551964,145.79,145.68,6.1814]
[1768355987506,4.67551964,145.79,145.67,182.14214368]
[1768355988904,4.67551964,145.79,145.69,6.1809]
[1768355989703,10.85261964,145.79,145.67,87.2218]
[1768355989909,4.67551964,145.78,145.67,85.98104368]
[1768355990508,4.67551964,145.78,145.67,4.94104368]
[1768355990809,4.67551964,145.8,145.71,4.94104368]
[1768355991904,4.67551964,145.8,145.71,11.12114368]
[1768355996110,4.67551964,145.8,145.71,6.1801]
[1768356001418,4.67551964,145.79,145.69,92.20184368]
[1768356001615,4.67551964,145.79,145.69,87.2608]
[1768356001816,4.67551964,145.77,145.65,4.94104368]
[1768356002016,4.67551964,145.77,145.65,86.02104368]
[1768356002416,4.67551964,145.77,145.68,6.1815]